bitfinex/quotes_BTCUSD_20250527
["timestamp","ask_amount","ask_price","bid_price","bid_amount"]
[1748378701027,7.90090763,109770.0,109760.0,8.66437396]
[1748378701950,8.05422491,109770.0,109760.0,8.66437396]
[1748378702177,6.52771593,109770.0,109760.0,8.66437396]
[1748378702392,6.78064243,109770.0,109760.0,8.66437396]
[1748378703304,6.83064243,109770.0,109760.0,8.66437396]
[1748378703970,6.47848315,109770.0,109760.0,8.66437396]
[1748378704243,6.55709508,109770.0,109760.0,8.66437396]
[1748378704934,6.5571953,109770.0,109760.0,8.66437396]
[1748378705607,6.54755613,109770.0,109760.0,8.61555199]
[1748378708571,6.5571953,109770.0,109760.0,8.61555199]
[1748378709017,7.16113406,109770.0,109760.0,8.43325199]
[1748378709253,7.10013483,109770.0,109760.0,8.43325199]
[1748378709557,7.1516426,109770.0,109760.0,8.43325199]
[1748378713356,7.15169849,109770.0,109760.0,8.43325199]
[1748378716667,5.94382097,109770.0,109760.0,8.43325199]
[1748378716889,7.15169849,109770.0,109760.0,8.43325199]
[1748378717184,5.92024626,109770.0,109760.0,8.43325199]
[1748378717422,7.15142535,109770.0,109760.0,7.87832492]
[1748378719118,7.20294942,109770.0,109760.0,7.87832492]
[1748378719346,5.9950719,109770.0,109760.0,7.87832492]
[1748378719579,7.20294942,109770.0,109760.0,7.87832492]
[1748378720252,7.15142535,109770.0,109760.0,7.87832492]
[1748378720499,7.15142535,109770.0,109760.0,7.85086009]
[1748378721370,7.07952135,109770.0,109760.0,7.85086009]
[1748378721588,7.15138322,109770.0,109760.0,7.85086009]
[1748378722507,7.15138322,109770.0,109760.0,7.80530393]
[1748378722728,7.15138322,109770.0,109760.0,7.75974063]
[1748378724240,7.30278794,109770.0,109760.0,7.75974063]
[1748378724465,5.9435057,109770.0,109760.0,7.79104063]
[1748378724967,7.30278794,109770.0,109760.0,7.79104063]
[1748378725187,7.30278794,109770.0,109760.0,7.75974063]
[1748378725640,7.30281915,109770.0,109760.0,7.7383786]
[1748378726321,5.94353691,109770.0,109760.0,7.7383786]
[1748378726549,7.24815915,109770.0,109760.0,7.7383786]
[1748378727453,7.29968242,109770.0,109760.0,7.7383786]
[1748378728329,7.29968242,109770.0,109760.0,7.31896559]
[1748378728330,7.24815915,109770.0,109760.0,7.31896559]
[1748378729463,7.24815915,109770.0,109760.0,7.34996559]
[1748378729671,7.24815915,109770.0,109760.0,7.31896559]
[1748378729924,7.24814427,109770.0,109760.0,7.31896559]
[1748378732091,7.24814427,109770.0,109760.0,7.2902486]
[1748378732306,7.22018789,109770.0,109760.0,7.2902486]
[1748378732768,7.22018789,109770.0,109760.0,7.23521169]
[1748378733648,7.22018789,109770.0,109760.0,7.21003494]
[1748378733865,7.22018789,109770.0,109760.0,7.16447164]
[1748378734092,7.24814154,109770.0,109760.0,7.11890834]
[1748378734519,7.24814154,109770.0,109760.0,7.07334504]
[1748378734731,7.24814154,109770.0,109760.0,7.02778174]
[1748378735154,6.94330154,109770.0,109760.0,6.98221844]
[1748378735369,7.28839596,109770.0,109760.0,6.93665514]
[1748378735588,7.28839596,109770.0,109760.0,6.40469184]
[1748378736031,7.28839596,109770.0,109760.0,6.35912854]
[1748378736236,7.28839596,109770.0,109760.0,6.31356524]
[1748378736441,7.34305596,109770.0,109760.0,6.31356524]
[1748378736652,7.34305596,109770.0,109760.0,6.26800194]
[1748378736863,7.34305596,109770.0,109760.0,6.22243864]
[1748378737078,7.34305596,109770.0,109760.0,6.17687534]
[1748378737523,7.34305596,109770.0,109760.0,6.14940935]
[1748378737737,7.34305596,109770.0,109760.0,6.11719935]
[1748378737947,5.98377372,109770.0,109760.0,6.07163605]
[1748378738160,5.95581734,109770.0,109760.0,6.02607275]
[1748378738433,7.3430539,109770.0,109760.0,6.02607275]
[1748378738686,7.3430539,109770.0,109760.0,5.98050945]
[1748378738907,7.3430539,109770.0,109760.0,5.93494615]
[1748378739124,7.34305154,109770.0,109760.0,5.88938285]
[1748378739351,7.34305154,109770.0,109760.0,5.84381955]
[1748378739777,7.34305154,109770.0,109760.0,5.79825625]
[1748378739984,7.34305154,109770.0,109760.0,5.75269295]
[1748378740435,7.34305154,109770.0,109760.0,5.70712965]
[1748378740645,7.34305154,109770.0,109760.0,5.66156635]
[1748378740867,7.30120002,109770.0,109760.0,5.58853758]
[1748378741084,7.27324364,109770.0,109760.0,5.65113758]
[1748378741324,7.27324364,109770.0,109760.0,5.60184429]
[1748378741782,7.27324364,109770.0,109760.0,5.55628099]
[1748378742007,7.27324364,109770.0,109760.0,5.51071769]
[1748378742231,6.44770871,109770.0,109760.0,5.51071769]
[1748378742451,6.74962871,109770.0,109760.0,5.50334769]
[1748378742716,6.79216603,109770.0,109760.0,5.50334769]
[1748378742944,6.77762518,109770.0,109760.0,5.50334769]
[1748378744505,6.79216603,109770.0,109760.0,5.50334769]
[1748378744721,6.74216603,109770.0,109760.0,5.50334769]
[1748378744934,6.79216603,109770.0,109760.0,5.50334769]
[1748378745643,6.79216603,109770.0,109760.0,5.48198566]
[1748378745851,6.79216603,109770.0,109760.0,5.47469554]
[1748378746286,6.79216603,109770.0,109760.0,5.46740542]
[1748378746724,6.84682603,109770.0,109760.0,5.4601153]
[1748378746943,6.84683981,109770.0,109760.0,5.4601153]
[1748378747162,6.89838798,109770.0,109760.0,5.45282518]
[1748378747374,7.35148206,109770.0,109760.0,5.31276757]
[1748378747592,7.35148206,109770.0,109760.0,5.30102945]
[1748378747937,7.35148206,109770.0,109760.0,5.25546615]
[1748378748030,7.35148206,109770.0,109760.0,5.17071842]
[1748378748251,7.35148206,109770.0,109760.0,5.2275283]
[1748378748469,7.35148206,109770.0,109760.0,5.2214683]
[1748378748683,7.35148206,109770.0,109760.0,5.16861488]
[1748378749178,7.29993389,109770.0,109760.0,5.14483477]
[1748378749400,7.35148082,109770.0,109760.0,5.09927147]
[1748378749680,7.35148082,109770.0,109760.0,5.06008704]
[1748378749908,7.35148082,109770.0,109760.0,5.05279692]
[1748378750131,7.30148082,109770.0,109760.0,4.96857362]
[1748378750362,7.35148082,109770.0,109760.0,4.9157202]
[1748378750569,7.35148082,109770.0,109760.0,4.8851302]
[1748378750792,7.35148082,109770.0,109760.0,4.87784008]
[1748378751013,7.35148082,109770.0,109760.0,4.86456996]
[1748378751235,7.35149048,109770.0,109760.0,4.81900666]
[1748378751458,7.35149048,109770.0,109760.0,4.81171654]
[1748378751717,7.35149048,109770.0,109760.0,4.76318224]
[1748378751940,7.35149048,109770.0,109760.0,4.75589212]
[1748378752155,7.04957048,109770.0,109760.0,4.70484456]
[1748378752373,7.35025048,109770.0,109760.0,4.69755444]
[1748378752804,7.35025048,109770.0,109760.0,4.64471432]
[1748378753045,7.35025048,109770.0,109760.0,4.6374242]
[1748378753264,7.35025048,109770.0,109760.0,4.6237542]
[1748378753476,7.29869879,109770.0,109760.0,4.61646408]
[1748378753696,7.35025814,109770.0,109760.0,4.57090078]
[1748378753912,7.04957814,109770.0,109760.0,4.56361066]
[1748378754127,7.35005814,109770.0,109760.0,4.56361066]
[1748378754350,7.29849879,109770.0,109760.0,4.55632054]
[1748378754596,7.24849879,109770.0,109760.0,4.51077054]
[1748378754826,7.29849879,109770.0,109760.0,4.50348042]
[1748378755051,7.29849879,109770.0,109760.0,4.4961903]
[1748378755509,7.29851018,109770.0,109760.0,4.48890018]
[1748378756060,7.3597375,109770.0,109760.0,4.45414459]
[1748378756286,7.3597375,109770.0,109760.0,4.44685447]
[1748378756748,7.3597375,109770.0,109760.0,4.43956435]
[1748378757223,7.3597375,109770.0,109760.0,4.43227423]
[1748378757584,6.60616342,109770.0,109760.0,4.43227423]
[1748378757817,6.74091561,109770.0,109760.0,4.43227423]
[1748378758392,6.74083561,109770.0,109760.0,4.43227423]
[1748378758613,6.83291899,109770.0,109760.0,4.43227423]
[1748378758734,6.87404012,109770.0,109760.0,4.43227423]
[1748378759372,6.74083561,109770.0,109760.0,4.43227423]
[1748378762487,7.19392969,109770.0,109760.0,4.38671094]
[1748378762709,7.22188607,109770.0,109760.0,4.36141094]
[1748378763361,7.22188607,109770.0,109760.0,4.14710757]
[1748378764053,7.22188607,109770.0,109760.0,4.13204757]
[1748378764054,5.86260383,109770.0,109760.0,4.13204757]
[1748378764274,7.22188607,109770.0,109760.0,4.13204757]
[1748378764545,7.29389281,109770.0,109760.0,4.13204757]
[1748378765502,7.22188607,109770.0,109760.0,4.13204757]
[1748378767871,7.22188607,109770.0,109760.0,4.08648693]
[1748378768011,7.22188607,109770.0,109760.0,4.04092629]
[1748378768243,7.22188607,109770.0,109760.0,4.03630629]
[1748378768470,7.22188607,109770.0,109760.0,3.99074565]
[1748378768682,7.22188607,109770.0,109760.0,3.89953501]
[1748378768892,7.22188607,109770.0,109760.0,3.86132501]
[1748378769094,7.22188607,109770.0,109760.0,3.78920437]
[1748378769517,7.34549093,109770.0,109760.0,3.76784247]
[1748378769717,7.34549093,109770.0,109760.0,3.75909248]
[1748378769919,5.98620869,109770.0,109760.0,3.75909248]
[1748378770129,7.34549171,109770.0,109760.0,3.75909248]
[1748378771036,7.44135171,109770.0,109760.0,3.57608348]
[1748378771195,7.38974941,109770.0,109760.0,3.53052284]
[1748378771362,7.44135171,109770.0,109760.0,3.52323314]
[1748378771769,7.44135171,109770.0,109760.0,3.55353314]
[1748378772585,7.38974941,109770.0,109760.0,3.05825013]
[1748378772800,7.38974941,109770.0,109760.0,3.08855013]
[1748378772993,7.38974941,109770.0,109760.0,3.04298949]
[1748378773299,7.38974941,109770.0,109760.0,2.99916949]
[1748378773519,7.33974941,109770.0,109760.0,2.97977949]
[1748378773734,7.38974941,109770.0,109760.0,2.93421885]
[1748378774162,7.38974941,109770.0,109760.0,2.89283885]
[1748378775288,7.43167681,109770.0,109760.0,2.47342584]
[1748378775948,6.07239457,109770.0,109760.0,2.47342584]
[1748378776176,7.43167681,109770.0,109760.0,2.50372584]
[1748378776626,7.38974941,109770.0,109760.0,2.50372584]
[1748378777569,7.38974941,109770.0,109760.0,2.44942584]
[1748378777829,7.38974941,109770.0,109760.0,2.12546037]
[1748378777830,8.73033165,109770.0,109760.0,2.12546037]
[1748378778044,7.33974941,109770.0,109760.0,2.12546037]
[1748378778774,7.34270308,109770.0,109760.0,2.12546037]
[1748378778997,7.37400308,109770.0,109760.0,2.12546037]
[1748378779458,7.40100308,109770.0,109760.0,2.12546037]
[1748378779735,7.40100308,109770.0,109760.0,2.10146037]
[1748378779963,7.37400308,109770.0,109760.0,2.10146037]
[1748378780198,7.40100308,109770.0,109760.0,2.10146037]
[1748378782697,7.45257217,109770.0,109760.0,2.10146037]
[1748378784321,7.45897217,109770.0,109760.0,2.10146037]
[1748378784538,7.45897217,109770.0,109760.0,2.05549569]
[1748378784765,7.45897217,109770.0,109760.0,2.05075415]
[1748378784980,7.4542286,109770.0,109760.0,2.05075415]
[1748378785198,7.40265951,109770.0,109760.0,2.05075415]
[1748378785418,7.421937,109770.0,109760.0,2.05075415]
[1748378785634,5.60485838,109770.0,109760.0,2.08375415]
[1748378785849,6.51104654,109770.0,109760.0,2.11435415]
[1748378786063,6.51578989,109770.0,109760.0,2.08688636]
[1748378786559,6.51578989,109770.0,109760.0,1.84665007]
[1748378786560,6.4642724,109770.0,109760.0,1.84665007]
[1748378787199,6.46419244,109770.0,109760.0,1.84665007]
[1748378787631,6.51570423,109770.0,109760.0,1.84665007]
[1748378789634,6.54366061,109770.0,109760.0,1.82528607]
[1748378789881,6.51666061,109770.0,109760.0,1.82528607]
[1748378790123,6.51026061,109770.0,109760.0,1.82528607]
[1748378790585,5.63107245,109770.0,109760.0,1.82528607]
[1748378790794,6.53726061,109770.0,109760.0,1.82528607]
[1748378791000,6.63312061,109770.0,109760.0,1.82528607]
[1748378794195,7.08621469,109770.0,109760.0,1.82528607]
[1748378795839,6.99031735,109770.0,109760.0,1.82528607]
[1748378796420,6.99031735,109770.0,109760.0,1.79171387]
[1748378796421,6.70249443,109770.0,109760.0,1.79171387]
[1748378796648,6.99925443,109770.0,109760.0,1.79171387]
[1748378796811,6.70249443,109770.0,109760.0,1.79171387]
[1748378797015,6.99921443,109770.0,109760.0,1.79171387]
[1748378797245,6.54612035,109770.0,109760.0,1.79171387]
[1748378798307,5.63993219,109770.0,109760.0,1.79171387]
[1748378798516,6.12436397,109770.0,109760.0,1.79171387]
[1748378798726,6.03459876,109770.0,109760.0,1.79171387]
[1748378798935,6.42691876,109770.0,109760.0,1.79171387]
[1748378799174,6.47844454,109770.0,109760.0,1.79171387]
[1748378799476,6.56668397,109770.0,109760.0,1.79171387]
[1748378799895,6.56675914,109770.0,109760.0,1.79171387]
[1748378800539,5.65090964,109770.0,109760.0,1.74566359]
[1748378800739,6.5570978,109770.0,109760.0,1.74566359]
[1748378800946,6.5570578,109770.0,109760.0,1.71819746]
[1748378801268,6.5070578,109770.0,109760.0,1.71819746]
[1748378801474,6.5570578,109770.0,109760.0,1.71819746]
[1748378802147,6.5070578,109770.0,109760.0,1.71819746]
[1748378803002,5.60086964,109770.0,109760.0,1.71819746]
[1748378803244,6.5070578,109770.0,109760.0,1.71819746]
[1748378803698,6.5570578,109770.0,109760.0,1.71819746]
[1748378803913,6.38343539,109770.0,109760.0,1.71819746]
[1748378804133,5.60066238,109770.0,109760.0,1.71819746]
[1748378804340,6.50685054,109770.0,109760.0,1.71819746]
[1748378804998,6.21045054,109770.0,109760.0,1.71819746]
[1748378805213,6.50725054,109770.0,109760.0,1.71819746]
[1748378805644,6.55725054,109770.0,109760.0,1.71819746]
[1748378805869,6.58520692,109770.0,109760.0,1.71819746]
[1748378807412,6.28840692,109770.0,109760.0,1.71819746]
[1748378807642,6.58528692,109770.0,109760.0,1.71819746]
[1748378808994,6.21045054,109770.0,109760.0,1.71819746]
[1748378809226,6.50705054,109770.0,109760.0,1.71819746]
[1748378809494,6.50705054,109770.0,109760.0,1.69683554]
[1748378809946,6.45536777,109770.0,109760.0,1.69683554]
[1748378810446,6.50689054,109770.0,109760.0,1.69683554]
[1748378811154,6.55689054,109770.0,109760.0,1.69683554]
[1748378812321,6.55678252,109770.0,109760.0,1.69683554]
[1748378812555,6.5847389,109770.0,109760.0,1.69683554]
[1748378813302,6.11466252,109770.0,109760.0,1.69683554]
[1748378813512,6.47785059,109770.0,109760.0,1.69683554]
[1748378813755,6.50646252,109770.0,109760.0,1.69683554]
[1748378815569,5.60027436,109770.0,109760.0,1.69683554]
[1748378815806,6.50646252,109770.0,109760.0,1.69683554]
[1748378816026,6.45498484,109770.0,109760.0,1.66937239]
[1748378818005,6.15273815,109770.0,109760.0,1.66937239]
[1748378819689,5.8420773,109770.0,109760.0,1.66937239]
[1748378819897,6.15225815,109770.0,109760.0,1.66937239]
[1748378820116,6.15233815,109770.0,109760.0,1.66937239]
[1748378820527,6.15233815,109770.0,109760.0,1.62432536]
[1748378820747,6.15231326,109770.0,109760.0,1.62432536]
[1748378820980,6.19412007,109770.0,109760.0,1.62432536]
[1748378823151,6.1940959,109770.0,109760.0,1.62432536]
[1748378825120,5.59014792,109770.0,109760.0,1.62432536]
[1748378825328,6.19408939,109770.0,109760.0,1.62432536]
[1748378825762,6.38476939,109770.0,109760.0,1.62432536]
[1748378825993,6.68000939,109770.0,109760.0,1.62432536]
[1748378828749,6.70796577,109770.0,109760.0,1.62432536]
[1748378829364,6.70795678,109770.0,109760.0,1.60296587]
[1748378830472,6.63820547,109770.0,109760.0,1.60296587]
[1748378830892,6.68000249,109770.0,109760.0,1.57550367]
[1748378834025,6.65670092,109770.0,109760.0,1.57550367]
[1748378839676,6.6149039,109770.0,109760.0,1.57550367]
[1748378840198,6.91691549,109770.0,109760.0,1.57550367]
[1748378841113,6.96835541,109770.0,109760.0,1.57550367]
[1748378842495,7.02944032,109770.0,109760.0,1.57550367]
[1748378844598,6.9780004,109770.0,109760.0,1.57550367]
[1748378845493,6.9780004,109770.0,109760.0,1.35643073]
[1748378845715,6.95875591,109770.0,109760.0,1.35643073]
[1748378846701,6.95884026,109770.0,109760.0,1.35643073]
[1748378848319,6.95644026,109770.0,109760.0,1.35643073]
[1748378849464,6.95644026,109770.0,109760.0,1.33507145]
[1748378850584,6.66360026,109770.0,109760.0,1.33507145]
[1748378850815,6.95610021,109770.0,109760.0,1.33507145]
[1748378851271,6.95614021,109770.0,109760.0,1.33507145]
[1748378851993,6.66362021,109770.0,109760.0,1.33507145]
[1748378852221,6.92902021,109770.0,109760.0,1.33507145]
[1748378852447,6.88717015,109770.0,109760.0,1.33507145]
[1748378852673,6.90202021,109770.0,109760.0,1.33507145]
[1748378852906,6.92902021,109770.0,109760.0,1.33507145]
[1748378853598,6.95602021,109770.0,109760.0,1.33507145]
[1748378855647,6.91417015,109770.0,109760.0,1.30761039]
[1748378856098,6.91369015,109770.0,109760.0,1.30761039]
[1748378856543,6.91361015,109770.0,109760.0,1.30761039]
[1748378856998,6.62177015,109770.0,109760.0,1.30761039]
[1748378857226,6.91349015,109770.0,109760.0,1.30761039]
[1748378857890,6.91341015,109770.0,109760.0,1.30761039]
[1748378858616,6.91329015,109770.0,109760.0,1.30761039]
[1748378859054,6.62181674,109770.0,109760.0,1.30761039]
[1748378859275,6.91333674,109770.0,109760.0,1.30761039]
[1748378859485,6.62181674,109770.0,109760.0,1.30761039]
[1748378859729,6.91329674,109770.0,109760.0,1.30761039]
[1748378860636,6.62181674,109770.0,109760.0,1.30761039]
[1748378860863,6.91321674,109770.0,109760.0,1.30761039]
[1748378861097,6.96321674,109770.0,109760.0,1.30761039]
[1748378861756,6.91321674,109770.0,109760.0,1.30761039]
[1748378863355,6.96322519,109770.0,109760.0,1.30761039]
[1748378863857,6.91322519,109770.0,109760.0,1.30761039]
[1748378864074,6.96322519,109770.0,109760.0,1.30761039]
[1748378864290,6.91322519,109770.0,109760.0,1.30761039]
[1748378864536,6.96322519,109770.0,109760.0,1.30761039]
[1748378864983,6.91322519,109770.0,109760.0,1.30761039]
[1748378865204,6.96322519,109770.0,109760.0,1.30761039]
[1748378865674,7.0259847,109770.0,109760.0,1.30761039]
[1748378865962,7.0244375,109770.0,109760.0,1.30761039]
[1748378866651,6.9744375,109770.0,109760.0,1.30761039]
[1748378867121,7.0244375,109770.0,109760.0,1.30761039]
[1748378867569,7.02449249,109770.0,109760.0,1.30761039]
[1748378869374,6.97449249,109770.0,109760.0,1.30761039]
[1748378869595,6.9648114,109770.0,109760.0,1.28625197]
[1748378870742,6.9132549,109770.0,109760.0,1.25879185]
[1748378871912,6.91323492,109770.0,109760.0,1.25879185]
[1748378873480,6.59322299,109770.0,109760.0,1.25879185]
[1748378873732,6.48213521,109770.0,109760.0,1.25879185]
[1748378873969,6.77233521,109770.0,109760.0,1.25879185]
[1748378874404,7.07225521,109770.0,109760.0,1.25879185]
[1748378874845,7.04525521,109770.0,109760.0,1.25879185]
[1748378875294,7.07225521,109770.0,109760.0,1.25979185]
[1748378875514,7.04525521,109770.0,109760.0,1.25979185]
[1748378875972,7.07225521,109770.0,109760.0,1.26079185]
[1748378876186,7.07223024,109770.0,109760.0,1.26079185]
[1748378877144,7.37736689,109770.0,109760.0,1.26079185]
[1748378877591,7.33548795,109770.0,109760.0,1.26079185]
[1748378877841,6.94980795,109770.0,109760.0,1.26079185]
[1748378878040,7.23968795,109770.0,109760.0,1.26079185]
[1748378878262,6.48667142,109770.0,109760.0,1.26079185]
[1748378878490,7.23964795,109770.0,109760.0,1.26079185]
[1748378880303,6.19679702,109770.0,109760.0,1.26079185]
[1748378880528,6.93949355,109770.0,109760.0,1.26079185]
[1748378880752,7.19841547,109770.0,109760.0,1.02774148]
[1748378881598,7.14441547,109770.0,109760.0,1.02574148]
[1748378881817,7.17141547,109770.0,109760.0,1.02674148]
[1748378882058,7.19841547,109770.0,109760.0,1.02774148]
[1748378883413,6.77841547,109770.0,109760.0,1.02774148]
[1748378884578,6.77838417,109770.0,109760.0,1.02774148]
[1748378884789,6.48866417,109770.0,109760.0,1.02774148]
[1748378885007,6.77806417,109770.0,109760.0,1.02774148]
[1748378885445,6.48866417,109770.0,109760.0,1.02774148]
[1748378885664,6.77806417,109770.0,109760.0,1.02774148]
[1748378885886,6.75260759,109770.0,109760.0,1.02774148]
[1748378886110,6.77813672,109770.0,109760.0,1.02774148]
[1748378886328,6.78476934,109770.0,109760.0,1.02774148]
[1748378886554,5.68773281,109770.0,109760.0,1.02774148]
[1748378886784,6.73010934,109770.0,109760.0,1.02774148]
[1748378886992,6.43010934,109770.0,109760.0,1.02774148]
[1748378887222,6.43861838,109770.0,109760.0,1.02774148]
[1748378887441,6.43010934,109770.0,109760.0,1.02774148]
[1748378887901,6.43861725,109770.0,109760.0,1.02774148]
[1748378888829,6.43008942,109770.0,109760.0,1.02774148]
[1748378889280,6.43859638,109770.0,109760.0,1.02774148]
[1748378889514,6.25219638,109770.0,109760.0,1.02774148]
[1748378889742,6.25219636,109770.0,109760.0,1.02774148]
[1748378889984,5.95219636,109770.0,109760.0,1.02774148]
[1748378890425,5.95219507,109770.0,109760.0,1.02774148]
[1748378890709,5.95219507,109770.0,109760.0,1.00638817]
[1748378890710,5.9200412,109770.0,109760.0,1.00638817]
[1748378890904,5.9455578,109770.0,109760.0,1.00638817]
[1748378891579,6.2455578,109770.0,109760.0,1.00638817]
[1748378891807,5.9455578,109770.0,109760.0,1.00638817]
[1748378892061,6.24555743,109770.0,109760.0,1.00638817]
[1748378893195,1.648902,109770.0,109760.0,1.00638817]
[1748378893635,1.64890179,109770.0,109760.0,1.00638817]
[1748378893862,1.34950179,109770.0,109760.0,1.00638817]
[1748378894086,1.94890179,109770.0,109760.0,1.00638817]
[1748378894299,1.35950179,109770.0,109760.0,1.00638817]
[1748378894553,1.94890179,109770.0,109760.0,1.00638817]
[1748378894772,1.94889913,109770.0,109760.0,1.00638817]
[1748378895002,1.64889913,109770.0,109760.0,1.00638817]
[1748378895644,1.94889913,109770.0,109760.0,1.00638817]
[1748378895866,1.64889913,109770.0,109760.0,1.00638817]
[1748378896520,1.94889913,109770.0,109760.0,1.00638817]
[1748378896740,1.94889966,109770.0,109760.0,1.00638817]
[1748378897429,1.49588547,109770.0,109760.0,1.00638817]
[1748378897639,1.648822,109770.0,109760.0,1.00638817]
[1748378897851,1.6488226,109770.0,109760.0,1.00638817]
[1748378899533,1.6488232,109770.0,109760.0,1.00638817]
[1748378899746,1.64031906,109770.0,109760.0,1.00638817]
[1748378899969,1.94882432,109770.0,109760.0,1.00638817]
[1748378900183,1.49584779,109770.0,109760.0,1.00638817]
[1748378900403,1.94882432,109770.0,109760.0,1.00638817]
[1748378900843,1.91669496,109770.0,109760.0,1.00638817]
[1748378901061,1.9081897,109770.0,109760.0,1.00638817]
[1748378901744,1.90818713,109770.0,109760.0,1.00638817]
[1748378905854,1.90819259,109770.0,109760.0,1.00638817]
[1748378906345,7.46773743,109770.0,109760.0,1.00638817]
[1748378906552,7.05575379,109770.0,109760.0,1.00638817]
[1748378907003,7.50873032,109770.0,109760.0,1.00638817]
[1748378907236,7.02779741,109770.0,109760.0,1.00638817]
[1748378907450,7.48077394,109770.0,109760.0,1.00638817]
[1748378908553,7.02779741,109770.0,109760.0,1.00638817]
[1748378910112,7.02781453,109770.0,109760.0,1.00638817]
[1748378910794,6.53383533,109770.0,109760.0,0.98503331]
[1748378911005,6.95819993,109770.0,109760.0,0.98503331]
[1748378912090,7.01290993,109770.0,109760.0,0.98503331]
[1748378913665,6.42354993,109770.0,109760.0,0.98503331]
[1748378913927,6.05883993,109770.0,109760.0,0.98503331]
[1748378914141,1.30815993,109770.0,109760.0,0.98503331]
[1748378914371,0.99429908,109770.0,109760.0,0.98503331]
[1748378914585,1.28861908,109770.0,109760.0,0.98503331]
[1748378914792,1.30315993,109770.0,109760.0,0.98503331]
[1748378918619,1.30317517,109770.0,109760.0,0.98503331]
[1748378920726,1.34497794,109770.0,109760.0,0.98503331]
[1748378924367,1.65497794,109770.0,109760.0,0.98503331]
[1748378924628,1.73817812,109770.0,109760.0,0.98503331]
[1748378924842,2.19115465,109770.0,109760.0,0.98503331]
[1748378925064,1.73817812,109770.0,109760.0,0.98503331]
[1748378927330,1.73824119,109770.0,109760.0,0.98503331]
[1748378929089,2.19121772,109770.0,109760.0,0.98503331]
[1748378929572,1.73824119,109770.0,109760.0,0.98503331]
[1748378930003,1.73824119,109770.0,109760.0,0.89397709]
[1748378930004,6.98917163,109770.0,109760.0,0.89397709]
[1748378930229,7.51456657,109770.0,109760.0,0.85697807]
[1748378930448,7.98617793,109770.0,109760.0,0.71574572]
[1748378930689,8.01747793,109770.0,109760.0,0.694386]
[1748378931355,8.05920409,109770.0,109760.0,0.694386]
[1748378932490,6.7002745,109770.0,109760.0,0.694386]
[1748378935610,6.65917978,109770.0,109760.0,0.694386]
[1748378935856,6.62695778,109770.0,109760.0,0.694386]
[1748378937399,6.5984676,109770.0,109760.0,0.694386]
[1748378940402,6.55671434,109770.0,109760.0,0.694386]
[1748378940616,6.67671434,109770.0,109760.0,0.694386]
[1748378940851,6.67671434,109770.0,109760.0,0.66082038]
[1748378943526,6.60500914,109770.0,109760.0,0.66082038]
[1748378943960,6.63350041,109770.0,109760.0,0.66082038]
[1748378944172,6.67445653,109770.0,109760.0,0.66082038]
[1748378944656,6.70517904,109770.0,109760.0,0.66082038]
[1748378945313,6.74614239,109770.0,109760.0,0.6333576]
[1748378945732,6.67445653,109770.0,109760.0,0.6333576]
[1748378947356,6.38513653,109770.0,109760.0,0.6333576]
[1748378947570,6.64634015,109770.0,109760.0,0.6333576]
[1748378949275,6.67429653,109770.0,109760.0,0.6333576]
[1748378949971,6.64429653,109770.0,109760.0,0.6333576]
[1748378950574,6.61299653,109770.0,109760.0,0.6333576]
[1748378950815,6.70439653,109770.0,109760.0,0.6333576]
[1748378952010,6.70439653,109770.0,109760.0,0.3981647]
[1748378952764,6.32383653,109770.0,109760.0,0.3981647]
[1748378952979,6.67640015,109770.0,109760.0,0.4623647]
[1748378955383,6.74808876,109770.0,109760.0,0.44100508]
[1748378955815,6.76070976,109770.0,109760.0,0.44100508]
[1748378956655,6.68902115,109770.0,109760.0,0.44100508]
[1748378956860,6.76071254,109770.0,109760.0,0.44100508]
[1748378959461,6.76067254,109770.0,109760.0,0.44100508]
[1748378960945,6.76065767,109770.0,109760.0,0.44100508]
[1748378962089,6.80239423,109770.0,109760.0,0.41354353]
[1748378965846,6.75239423,109770.0,109760.0,0.41354353]
[1748378966055,6.80239423,109770.0,109760.0,0.41354353]
[1748378967319,6.42157767,109770.0,109760.0,0.41354353]
[1748378967554,6.39486635,109770.0,109760.0,0.41354353]
[1748378967767,6.57398555,109770.0,109760.0,0.41354353]
[1748378968176,6.23522438,109770.0,109760.0,0.41354353]
[1748378968506,6.57522438,109770.0,109760.0,0.41354353]
[1748378968928,6.54622438,109770.0,109760.0,0.41354353]
[1748378969146,6.18072552,109770.0,109760.0,0.41354353]
[1748378969372,6.81497618,109770.0,109760.0,0.41354353]
[1748378969595,7.11501323,109770.0,109760.0,0.41354353]
[1748378969822,7.12955408,109770.0,109760.0,0.41354353]
[1748378970038,7.10255408,109770.0,109760.0,0.41254353]
[1748378970236,7.10055408,109770.0,109760.0,0.41254353]
[1748378971080,7.12555408,109770.0,109760.0,0.41354353]
[1748378971300,6.46080408,109770.0,109760.0,0.41354353]
[1748378972998,7.16824417,109770.0,109760.0,0.41354353]
[1748378973230,7.14028779,109770.0,109760.0,0.41354353]
[1748378975484,7.09929535,109770.0,109760.0,0.39218926]
[1748378976559,6.48929535,109770.0,109760.0,0.39218926]
[1748378976996,6.78929535,109770.0,109760.0,0.39218926]
[1748378977216,7.08929535,109770.0,109760.0,0.39218926]
[1748378977867,7.08927813,109770.0,109760.0,0.39218926]
[1748378979634,6.99775813,109770.0,109760.0,0.39218926]
[1748378980289,6.96926686,109770.0,109760.0,0.39218926]
[1748378980498,6.97926686,109770.0,109760.0,0.39218926]
[1748378980928,6.96926686,109770.0,109760.0,0.39218926]
[1748378981795,7.02397686,109770.0,109760.0,0.39218926]
[1748378982244,7.02396944,109770.0,109760.0,0.39218926]
[1748378986087,6.93580714,109770.0,109760.0,0.30053323]
[1748378986351,6.94055582,109770.0,109760.0,0.30053323]
[1748378986731,6.98230925,109770.0,109760.0,0.30053323]
[1748378987070,7.01360925,109770.0,109760.0,0.30053323]
[1748378987529,7.04360925,109770.0,109760.0,0.30053323]
[1748378989562,7.01360925,109770.0,109760.0,0.30053323]
[1748378990478,6.98230925,109770.0,109760.0,0.30053323]
[1748378990699,6.98230938,109770.0,109760.0,0.30053323]
[1748378995357,6.98230938,109770.0,109760.0,0.27917457]
[1748378999371,6.98233596,109770.0,109760.0,0.27917457]
[1748378999847,6.98233596,109770.0,109760.0,0.31037457]
[1748379001051,6.98233596,109770.0,109760.0,0.28291358]
[1748379001052,6.98221596,109770.0,109760.0,0.28291358]
[1748379001278,6.98221596,109770.0,109760.0,0.31401358]
[1748379001954,6.57441958,109770.0,109760.0,0.31401358]
[1748379002208,6.95429958,109770.0,109760.0,0.31401358]
[1748379003535,6.9543231,109770.0,109760.0,0.31401358]
[1748379005634,6.9542831,109770.0,109760.0,0.31401358]
[1748379006902,6.9543008,109770.0,109760.0,0.31401358]
[1748379008083,6.95430457,109770.0,109760.0,0.31401358]
[1748379010830,6.2459733,109770.0,109760.0,0.31401358]
[1748379011070,6.32335222,109770.0,109760.0,0.31401358]
[1748379011301,6.56045387,109770.0,109760.0,0.31401358]
[1748379011527,6.64036349,109770.0,109760.0,0.31401358]
[1748379012017,6.35184349,109770.0,109760.0,0.31401358]
[1748379012265,6.61225316,109770.0,109760.0,0.31401358]
[1748379012722,6.32373316,109770.0,109760.0,0.31401358]
[1748379013162,6.61225316,109770.0,109760.0,0.31401358]
[1748379013383,6.61226286,109770.0,109760.0,0.31401358]